fUSD/lending_fUSD_20251130
["ID","MTS","AMOUNT","RATE_DAILY","PERIOD"]
[395162881,1764499048740,-500.0,0.00012401,2]
[395162882,1764499048766,-151.0,0.00012401,2]
[395162883,1764499048792,-500.0,0.00012401,2]
[395162884,1764499048820,-151.0,0.00012401,2]
[395162885,1764499048850,-564.39360719,0.00012401,2]
[395162886,1764499048876,-151.0,0.00012401,2]
[395162887,1764499048903,-151.0,0.00012401,2]
[395162888,1764499048930,-151.0,0.00012401,2]
[395162889,1764499048956,-151.0,0.00012401,2]
[395162890,1764499048982,-151.0,0.00012401,2]
[395162891,1764499049009,-578.12819382,0.00012401,2]
[395162892,1764499049580,-421.87180618,0.00012401,2]
[395162893,1764499049606,-151.0,0.00012401,2]
[395162894,1764499049635,-151.0,0.00012401,2]
[395162895,1764499049662,-1000.0,0.00012401,2]
[395162896,1764499049690,-257.91778498,0.00012401,2]
[395162897,1764499049719,-1000.0,0.00012401,2]
[395162898,1764499049746,-1000.0,0.00012401,2]
[395162899,1764499049774,-1000.0,0.00012401,2]
[395162900,1764499050313,-421.87180618,0.00012401,2]
[395162901,1764499050330,-36.43081768,0.00012401,2]
[395162902,1764499060913,-2831.96563444,0.00012308,2]
[395162903,1764499060935,-4336.07873112,0.00012308,2]
[395162904,1764499098916,-289.51828765,0.00012308,2]
[395162905,1764499143988,-300.0,0.00012306,2]
[395162906,1764499144011,-175.19667824,0.00012306,2]
[395162907,1764499145436,-43.80332176,0.00012306,2]
[395162908,1764499145458,-117.18463075,0.00012306,2]
[395162909,1764499147646,-32.81536925,0.00012306,2]
[395162910,1764499147669,-436.25007986,0.00012307,2]
[395162911,1764499158563,-451.5997428,0.00012307,2]
[395162912,1764499189479,-300.0,0.00012245,2]
[395162913,1764499263951,-296.55391083,0.00012147,2]
[395162914,1764499266534,-155.04583217,0.00012147,2]
[395162915,1764499266556,-134.23539903,0.00012208,2]
[395162916,1764499293092,1505.48907607,0.00012061,2]
[395162917,1764499303925,999.0,0.0001209,3]
[395162918,1764499399190,500.0,0.00024999,120]
[395162920,1764499458982,-194.16417495,0.0001197,2]
[395162921,1764499462037,-288.79778732,0.0001197,2]
[395162922,1764499463946,-102.87317973,0.0001197,2]
[395162923,1764499463970,-200.0,0.0001203,2]
[395162924,1764499463994,-45.57153653,0.00012031,2]
[395162925,1764499465426,-204.42846347,0.00012031,2]
[395162926,1764499465450,-245.76752005,0.00012061,2]
[395162927,1764499469746,-198.98171055,0.00012061,2]
[395162928,1764499471369,-500.0,0.00012061,2]
[395162929,1764499472709,-260.88026284,0.00012061,2]
[395162930,1764499477287,-334.30826152,0.00012061,2]
[395162931,1764499480679,-281.72570416,0.00012061,2]
[395162932,1764499481996,-213.31346868,0.00012061,2]
[395162933,1764499483227,-254.9048155,0.00012061,2]
[395162934,1764499485706,-158.21882185,0.00012061,2]
[395162935,1764499487647,-181.39330656,0.00012061,2]
[395162936,1764499490060,-268.60669344,0.00012061,2]
[395162965,1764499578977,-324.44683813,0.00012061,2]
[395162966,1764499581031,-417.47152065,0.00012061,2]
[395162968,1764499581053,-82.52847935,0.00012061,2]
[395162969,1764499584007,-174.51552065,0.00012061,2]
[395162970,1764499584030,-124.84652739,0.00012075,2]
[395162971,1764499586015,-394.41304336,0.00012075,2]
[395162972,1764499587467,-294.77285261,0.00012075,2]
[395162979,1764499608601,-185.96757664,0.00012075,2]
[395162980,1764499608628,-150.0,0.000121,2]
[395162981,1764499608657,-2751.0,0.00012127,2]
[395162982,1764499608685,-278.86022064,0.00012206,2]
[395162983,1764499608713,-300.0,0.00012207,2]
[395162984,1764499608743,-1200.0,0.00012207,2]
[395162985,1764499608773,-118.35440544,0.00012207,2]
[395162986,1764499608874,-31.64559456,0.00012207,2]
[395162987,1764499608923,-184.82968071,0.00012207,2]
[395163103,1764499653957,-300.0,0.00012207,2]
[395163104,1764499656043,-295.81556363,0.00012061,2]
[395163109,1764499685530,-282.39367945,0.00012061,2]
[395163110,1764499685554,-515.17031929,0.00012207,2]
[395163111,1764499685577,-686.668,0.00012207,2]
[395163112,1764499685599,-393.30845519,0.00012208,2]
[395163113,1764499696536,-3942.07852624,0.00012208,2]
[395163114,1764499696560,-2115.85294752,0.00012208,2]
[395163115,1764499696768,-10000.01,0.00012208,2]
[395163118,1764499718838,-117.05422475,0.00012208,2]
[395163119,1764499718866,-556.52722,0.0001228,2]
[395163120,1764499718897,-567.03367763,0.00012299,2]
[395163121,1764499718925,-150.0,0.00012299,2]
[395163122,1764499718954,-300.0,0.000123,2]
[395163123,1764499718982,-334.5472959,0.000123,2]
[395163124,1764499719010,-151.8981321,0.000123,2]
[395163125,1764499719038,-533.88981491,0.000123,2]
[395163126,1764499719065,-151.0,0.000123,2]
[395163127,1764499719096,-151.0,0.000123,2]
[395163128,1764499719124,-151.0,0.000123,2]
[395163129,1764499719153,-151.0,0.000123,2]
[395163130,1764499719181,-151.0,0.000123,2]
[395163131,1764499719209,-1000.0,0.000123,2]
[395163132,1764499719236,-158.02955935,0.000123,2]
[395163133,1764499719262,-257.91778498,0.000123,2]
[395163134,1764499719634,-500.0,0.000123,2]
[395163135,1764499719662,-500.0,0.000123,2]
[395163136,1764499719693,-467.2801109,0.000123,2]
[395163137,1764499719727,-500.0,0.000123,2]
[395163138,1764499719754,-200.0,0.000123,2]
[395163139,1764499719784,-500.0,0.000123,2]
[395163140,1764499719811,-620.0,0.000123,2]
[395163141,1764499719837,-500.0,0.000123,2]
[395163142,1764499719863,-207.01462427,0.000123,2]
[395163143,1764499719889,-218.10428989,0.000123,2]
[395163144,1764499719916,-601.61666286,0.000123,2]
[395163145,1764499720023,-965.83057924,0.000123,2]
[395163146,1764499720051,-250.0,0.000123,2]
[395163147,1764499720079,-250.0,0.000123,2]
[395163148,1764499720107,-250.0,0.000123,2]
[395163149,1764499720137,-250.0,0.000123,2]
[395163150,1764499720164,-250.0,0.000123,2]
[395163151,1764499720192,-250.0,0.000123,2]
[395163152,1764499720220,-250.0,0.000123,2]
[395163153,1764499720250,-250.0,0.000123,2]
[395163154,1764499720282,-250.0,0.000123,2]
[395163155,1764499720310,-250.0,0.000123,2]
[395163156,1764499720338,-250.0,0.000123,2]
[395163157,1764499720365,-250.0,0.000123,2]
[395163158,1764499720391,-250.0,0.000123,2]
[395163159,1764499720418,-250.0,0.000123,2]
[395163160,1764499720448,-250.0,0.000123,2]
[395163161,1764499720478,-250.0,0.000123,2]
[395163162,1764499720653,-250.0,0.000123,2]
[395163163,1764499720679,-250.0,0.000123,2]
[395163164,1764499720706,-250.0,0.000123,2]
[395163165,1764499720733,-250.0,0.000123,2]
[395163166,1764499720760,-250.0,0.000123,2]
[395163167,1764499720786,-250.0,0.000123,2]
[395163168,1764499720812,-250.0,0.000123,2]
[395163169,1764499720839,-250.0,0.000123,2]
[395163170,1764499720866,-379.6,0.000123,2]
[395163171,1764499720893,-253.32850165,0.00012301,2]
[395163173,1764499723816,-117.07149835,0.00012306,2]
[395163174,1764499723830,-379.6,0.00012306,2]
[395163175,1764499723843,-253.32850165,0.00012306,2]
[395163176,1764499723858,-4734.1529967,0.00012306,2]
[395163177,1764499723886,-10000.01,0.00012306,2]
[395163178,1764499723912,-3950.1970033,0.00012306,2]
[395163179,1764499723922,-310.82,0.00012306,2]
[395163180,1764499723932,-500.0,0.00012306,2]
[395163181,1764499723941,-202.8579878,0.00012306,2]
[395163185,1764499750289,235.2993,0.00012207,2]
[395163186,1764499752447,152.1713653,0.000123,2]
[395163187,1764499752524,357.82898019,0.000123,2]
[395163189,1764499759966,630.05340162,0.000123,2]
[395163191,1764499793041,1000.0,0.00012207,2]
[395163193,1764499801200,1200.0,0.00012306,2]
[395163194,1764499801254,300.0,0.00012306,2]
[395163195,1764499801362,300.0,0.00012306,2]
[395163200,1764499806988,162.45,0.00019178,30]
[395163202,1764499810011,250.0,0.00012175,2]
[395163204,1764499814640,500.0,0.00012305,2]
[395163205,1764499831954,6450.01,0.00012304,2]
[395163206,1764499831977,10000.01,0.00012304,2]
[395163207,1764499832000,10000.01,0.00012304,2]
[395163208,1764499832023,10000.01,0.00012304,2]
[395163209,1764499832045,10000.01,0.00012304,2]
[395163210,1764499832067,10000.01,0.00012304,2]
[395163212,1764499832089,10000.01,0.00012304,2]
[395163213,1764499832113,10000.01,0.00012304,2]
[395163227,1764499832299,-4573.2,0.00012304,2]
[395163230,1764499832377,-15450.65675534,0.00012304,2]
[395163231,1764499832431,-1537.36,0.00012304,2]
[395163232,1764499832444,-3133.70324466,0.00012304,2]
[395163233,1764499832454,-1931.36652764,0.00012307,2]
[395163234,1764499832465,-54981.71118786,0.00012307,2]
[395163235,1764499832476,-3601.14541916,0.00012307,2]
[395163236,1764499832532,-1037.1543125,0.00012307,2]
[395163237,1764499832545,-264.5794,0.00012307,2]
[395163245,1764499838564,-1000.0,0.00012207,2]
[395163246,1764499838574,-1539.87828913,0.00012301,2]
[395163254,1764499840299,-4906.49220683,0.00012301,2]
[395163255,1764499840308,-500.0,0.00012306,2]
[395163256,1764499840317,-500.0,0.00012306,2]
[395163257,1764499840328,-178.24951784,0.00012306,2]
[395163258,1764499840338,-2058.76071032,0.00012307,2]
[395163259,1764499840459,-1202.4135,0.00012307,2]
[395163260,1764499840470,-4108.00505124,0.00012307,2]
[395163266,1764499841463,-1.7e-07,0.00012307,2]
[395163271,1764499844352,-400.65859321,0.00012307,2]
[395163274,1764499844724,-1544.64022101,0.00012307,2]
[395163277,1764499846520,-608.63608267,0.00012307,2]
[395163282,1764499930675,-4116.406,0.00012061,2]
[395163283,1764499930704,-205.636,0.00012061,2]
[395163284,1764499930732,-250.0,0.00012134,2]
[395163285,1764499930759,-300.0,0.00012206,2]
[395163286,1764499942354,-2500.0,0.00012207,2]
[395163287,1764499942383,-151.0,0.00012304,2]
[395163288,1764499942411,-2338.8657664,0.00012305,2]
[395163402,1764500115400,-164.40486399,0.00012206,2]
[395163403,1764500115432,-1000.0,0.00012207,2]
[395163404,1764500115464,-1000.0,0.00012207,2]
[395163405,1764500115495,-300.0,0.00012294,2]
[395163406,1764500115525,-300.0,0.00012294,2]
[395163407,1764500115556,-1200.0,0.00012294,2]
[395163422,1764500130242,-972.05169211,0.00012295,2]
[395163423,1764500137151,-10000.01,0.00012295,2]
[395163424,1764500137369,-10000.01,0.00012295,2]
[395163425,1764500137576,-10000.01,0.00012295,2]
[395163430,1764500212776,614.1397302,0.00012206,2]
[395163431,1764500218909,210.91,0.00012137,2]
[395163432,1764500222304,150.0,0.00012206,2]
[395163434,1764500222950,500.0,0.00012206,2]
[395163435,1764500224725,500.0,0.00012206,2]
[395163436,1764500228070,511.019605,7.945e-05,2]
[395163437,1764500235305,6563.93697743,0.00012107,2]
[395163439,1764500251291,628.80011146,0.00012206,2]
[395163440,1764500264770,215.85912561,0.000122,2]
[395163441,1764500273777,105.3444503,0.00012206,2]
[395163442,1764500273800,1094.6555497,0.00012206,2]
[395163444,1764500281499,300.0,0.00012206,2]
[395163445,1764500282217,500.0,0.00012107,2]
[395163447,1764500283628,671.39824189,0.00012206,2]
[395163448,1764500283666,556.39807444,0.00012206,2]
[395163449,1764500283705,307.93848892,0.00012206,2]
[395163450,1764500305262,4791.96,0.00012151,2]
[395163451,1764500341273,300.0,0.00012206,2]
[395163453,1764500374488,-1058.00895066,0.00012207,2]
[395163454,1764500376041,-193.59002877,0.00012207,2]
[395163455,1764500378756,-505.2686431,0.00012207,2]
[395163456,1764500379867,-281.76093126,0.00012207,2]
[395163457,1764500381371,-553.28764392,0.00012207,2]
[395163458,1764500383400,-255.92714014,0.00012207,2]
[395163459,1764500384777,-300.0,0.00012207,2]
[395163460,1764500390277,-300.0,0.00012207,2]
[395163461,1764500392750,-424.31960322,0.00012207,2]
[395163462,1764500394258,-828.28028163,0.00012207,2]
[395163464,1764500401592,300.0,0.00012206,2]
[395163466,1764500402267,150.0,0.00012206,2]
[395163470,1764500420654,500.0,0.00012206,2]
[395163471,1764500420702,500.0,0.00012206,2]
[395163472,1764500420748,27.65964505,0.00012206,2]
[395163473,1764500420774,472.34035495,0.00012206,2]
[395163474,1764500420820,500.0,0.00012206,2]
[395163475,1764500420861,500.0,0.00012206,2]
[395163476,1764500420910,500.0,0.00012206,2]
[395163477,1764500420952,500.0,0.00012206,2]
[395163478,1764500421000,500.0,0.00012206,2]
[395163479,1764500421043,500.0,0.00012206,2]
[395163480,1764500421083,500.0,0.00012206,2]
[395163481,1764500421126,500.0,0.00012206,2]
[395163482,1764500421166,500.0,0.00012206,2]
[395163483,1764500421210,500.0,0.00012206,2]
[395163484,1764500421667,500.0,0.00012206,2]
[395163485,1764500421705,500.0,0.00012206,2]
[395163486,1764500421765,500.0,0.00012206,2]
[395163487,1764500421803,500.0,0.00012206,2]
[395163488,1764500421841,500.0,0.00012206,2]
[395163489,1764500421893,500.0,0.00012206,2]
[395163490,1764500421933,500.0,0.00012206,2]
[395163491,1764500421988,500.0,0.00012206,2]
[395163492,1764500422025,500.0,0.00012206,2]
[395163493,1764500422069,27.66964505,0.00012206,2]
[395163494,1764500422095,472.33035495,0.00012206,2]
[395163495,1764500422135,500.0,0.00012206,2]
[395163496,1764500422183,500.0,0.00012206,2]
[395163497,1764500422223,500.0,0.00012206,2]
[395163498,1764500422266,500.0,0.00012206,2]
[395163499,1764500422310,500.0,0.00012206,2]
[395163500,1764500422355,500.0,0.00012206,2]
[395163501,1764500422395,500.0,0.00012206,2]
[395163502,1764500422452,500.0,0.00012206,2]
[395163503,1764500422501,500.0,0.00012206,2]
[395163504,1764500422540,500.0,0.00012206,2]
[395163505,1764500422579,500.0,0.00012206,2]
[395163506,1764500422640,500.0,0.00012206,2]
[395163507,1764500437125,-4630.98,0.00012182,2]
[395163508,1764500437158,-238.05,0.00012206,2]
[395163512,1764500447203,-1875.96,6.079e-05,2]
[395163513,1764500447232,-1875.96,6.399e-05,2]
[395163514,1764500447263,-620.21,6.719e-05,2]
[395163515,1764500447297,-1255.75,6.719e-05,2]
[395163516,1764500447327,-1875.96,7.039e-05,2]
[395163517,1764500447355,-1860.63,7.359e-05,2]
[395163524,1764500449485,-15.33,7.359e-05,2]
[395163525,1764500449508,-484.67,7.679e-05,2]
[395163526,1764500452019,-168.35430557,7.679e-05,2]
[395163527,1764500453471,-302.0,7.679e-05,2]
[395163528,1764500453720,-920.93569443,7.679e-05,2]
[395163529,1764500453749,-1875.96,7.999e-05,2]
[395163530,1764500453778,-1875.96,8.319e-05,2]
[395163531,1764500453985,-1875.96,8.639e-05,2]
[395163532,1764500454016,-1875.96,8.959e-05,2]
[395163533,1764500454049,-620.21,9.279e-05,2]
[395163534,1764500454883,-210.0,9.279e-05,2]
[395163535,1764500456881,-313.17031929,9.279e-05,2]
[395163536,1764500459522,-301.0,9.279e-05,2]
[395163537,1764500462833,-200.0,9.279e-05,2]
[395163539,1764500466638,-191.89281075,9.279e-05,2]
[395163540,1764500482663,-39.68686996,9.279e-05,2]
[395163541,1764500482695,-1875.96,9.599e-05,2]
[395163542,1764500482724,-1875.96,9.919e-05,2]
[395163543,1764500482753,-193.0,0.00010207,2]
[395163544,1764500482783,-154.83626008,0.00010239,2]
[395163545,1764500482969,-1721.12373992,0.00010239,2]
[395163546,1764500482999,-1875.96,0.00010559,2]
[395163547,1764500483030,-300.0,0.00010878,2]
[395163548,1764500483063,-329.88252016,0.00010879,2]
[395163549,1764500488442,-1546.07747984,0.00010879,2]
[395163550,1764500488835,-1875.96,0.00011199,2]
[395163551,1764500488862,-1497.91504032,0.00011429,2]
[395163552,1764500495872,-160.10495968,0.00011429,2]
[395163553,1764500495902,-1875.96,0.00011519,2]
[395163554,1764500495932,-1875.96,0.00011839,2]
[395163555,1764500495961,-420.0,0.00011955,2]
[395163557,1764500515371,-1734.01451627,0.00012107,2]
[395163558,1764500523109,-1196.55061714,0.00012107,2]
[395163559,1764500523132,-7606.90876572,0.00012107,2]
[395163566,1764500601919,511.297579,0.00024999,120]
[395163567,1764500611197,-2500.0,0.00012107,2]
[395163568,1764500611225,-1875.96,0.00012159,2]
[395163569,1764500611253,-150.0,0.00012204,2]
[395163570,1764500611287,-300.0,0.00012204,2]
[395163571,1764500611377,-348.09,0.00012205,2]
[395163572,1764500611467,-151.91,0.00012205,2]
[395163573,1764500611497,-500.0,0.00012205,2]
[395163574,1764500611528,-500.0,0.00012205,2]
[395163575,1764500611563,-500.0,0.00012205,2]
[395163576,1764500611596,-500.0,0.00012205,2]
[395163577,1764500611627,-500.0,0.00012205,2]
[395163578,1764500611660,-500.0,0.00012205,2]
[395163579,1764500611690,-500.0,0.00012205,2]
[395163580,1764500611723,-500.0,0.00012205,2]
[395163581,1764500611754,-500.0,0.00012205,2]
[395163582,1764500611786,-196.19,0.00012205,2]
[395163583,1764500611931,-303.81,0.00012205,2]
[395163584,1764500611964,-500.0,0.00012205,2]
[395163585,1764500611997,-500.0,0.00012205,2]
[395163586,1764500612027,-500.0,0.00012205,2]
[395163587,1764500612058,-500.0,0.00012205,2]
[395163588,1764500612089,-500.0,0.00012205,2]
[395163589,1764500612120,-500.0,0.00012205,2]
[395163590,1764500612151,-500.0,0.00012205,2]
[395163591,1764500612182,-500.0,0.00012205,2]
[395163592,1764500612220,-500.0,0.00012205,2]
[395163593,1764500613142,-303.81,0.00012205,2]
[395163594,1764500613160,-196.19,0.00012205,2]
[395163595,1764500613170,-196.2,0.00012205,2]
[395163596,1764500617943,-500.0,0.00012107,2]
[395163597,1764500617974,-303.8,0.00012205,2]
[395163598,1764500618002,-500.0,0.00012205,2]
[395163599,1764500618031,-500.0,0.00012205,2]
[395163600,1764500618060,-500.0,0.00012205,2]
[395163601,1764500618090,-500.0,0.00012205,2]
[395163602,1764500618120,-500.0,0.00012205,2]
[395163603,1764500618150,-500.0,0.00012205,2]
[395163604,1764500618180,-500.0,0.00012205,2]
[395163605,1764500618214,-500.0,0.00012205,2]
[395163606,1764500618330,-613.61987902,0.00012205,2]
[395163607,1764500618362,-500.0,0.00012205,2]
[395163608,1764500618397,-500.0,0.00012205,2]
[395163609,1764500618429,-500.0,0.00012205,2]
[395163610,1764500618459,-500.0,0.00012205,2]
[395163611,1764500618491,-500.0,0.00012205,2]
[395163612,1764500618522,-500.0,0.00012205,2]
[395163613,1764500618554,-500.0,0.00012205,2]
[395163614,1764500618584,-500.0,0.00012205,2]
[395163615,1764500618614,-272.77024196,0.00012205,2]
[395163616,1764500619036,-119.63975804,0.00012205,2]
[395163617,1764500619050,-107.59,0.00012205,2]
[395163618,1764500619060,-392.41,0.00012205,2]
[395163619,1764500625144,-107.59,0.00012205,2]
[395163620,1764500625174,-500.0,0.00012205,2]
[395163621,1764500625209,-500.0,0.00012205,2]
[395163622,1764500625239,-500.0,0.00012205,2]
[395163623,1764500625273,-500.0,0.00012205,2]
[395163624,1764500625308,-500.0,0.00012205,2]
[395163625,1764500625343,-500.0,0.00012205,2]
[395163626,1764500625377,-500.0,0.00012205,2]
[395163627,1764500625408,-510.97607218,0.00012205,2]
[395163628,1764500625439,-500.0,0.00012205,2]
[395163629,1764500625469,-262.87785564,0.00012205,2]
[395163630,1764500625637,-237.12214436,0.00012205,2]
[395163634,1764500745628,-239.65,0.00012027,2]
[395163635,1764500745658,-1200.0,0.00012106,2]
[395163636,1764500745688,-300.0,0.00012106,2]
[395163637,1764500745762,-6520.71,0.00012107,2]
[395163638,1764500745842,-72.81645765,0.00012107,2]
[395163639,1764500745870,-265.89293164,0.00012107,2]
[395163640,1764500745898,-3411.8224,0.00012107,2]
[395163641,1764500745968,-2498.94642142,0.00012107,2]
[395163642,1764500745997,-10000.01,0.00012107,2]
[395163643,1764500746119,-10000.01,0.00012107,2]
[395163644,1764500746248,-332.92297858,0.00012107,2]
[395163645,1764500746278,-2500.0,0.00012107,2]
[395163646,1764500746310,-500.0,0.00012204,2]
[395163647,1764500746341,-500.0,0.00012204,2]
[395163648,1764500746372,-500.0,0.00012204,2]
[395163649,1764500746404,-500.0,0.00012204,2]
[395163650,1764500746527,-334.16404284,0.00012204,2]
[395163651,1764500746568,-165.83595716,0.00012204,2]
[395163652,1764500746603,-500.0,0.00012204,2]
[395163653,1764500746633,-500.0,0.00012204,2]
[395163654,1764500746669,-500.0,0.00012204,2]
[395163655,1764500746702,-500.0,0.00012204,2]
[395163656,1764500746734,-460.19415136,0.00012204,2]
[395163657,1764500746769,-500.0,0.00012204,2]
[395163658,1764500746801,-500.0,0.00012204,2]
[395163659,1764500746834,-500.0,0.00012204,2]
[395163660,1764500746865,-500.0,0.00012204,2]
[395163661,1764500746898,-247.94978296,0.00012204,2]
[395163662,1764500746988,-252.05021704,0.00012204,2]
[395163663,1764500747021,-500.0,0.00012204,2]
[395163664,1764500747054,-500.0,0.00012204,2]
[395163665,1764500747089,-500.0,0.00012204,2]
[395163666,1764500747122,-500.0,0.00012204,2]
[395163667,1764500747154,-500.0,0.00012204,2]
[395163668,1764500747186,-500.0,0.00012204,2]
[395163669,1764500747225,-500.0,0.00012204,2]
[395163670,1764500747259,-500.0,0.00012204,2]
[395163671,1764500747294,-500.0,0.00012204,2]
[395163672,1764500747418,-500.0,0.00012204,2]
[395163673,1764500747450,-500.0,0.00012204,2]
[395163674,1764500747481,-500.0,0.00012204,2]
[395163675,1764500747512,-500.0,0.00012204,2]
[395163676,1764500747543,-500.0,0.00012204,2]
[395163677,1764500747576,-500.0,0.00012204,2]
[395163678,1764500747608,-500.0,0.00012204,2]
[395163679,1764500747640,-500.0,0.00012204,2]
[395163680,1764500747673,-500.0,0.00012204,2]
[395163681,1764500747704,-500.0,0.00012204,2]
[395163682,1764500747820,-500.0,0.00012204,2]
[395163683,1764500747851,-500.0,0.00012204,2]
[395163684,1764500747882,-500.0,0.00012204,2]
[395163685,1764500747913,-500.0,0.00012204,2]
[395163686,1764500747944,-250.0,0.00012204,2]
[395163687,1764500747972,-154.8541341,0.00012206,2]
[395163688,1764500748000,-429.89781114,0.00012206,2]
[395163689,1764500748028,-1000.33,0.00012207,2]
[395163690,1764500748055,-249.0,0.00012207,2]
[395163691,1764500748083,-257.91778498,0.00012207,2]
[395163692,1764500748111,-319.96400785,0.00012207,2]
[395163693,1764500749175,-174.17842421,0.00012207,2]
[395163694,1764500749199,-257.91778498,0.00012207,2]
[395163695,1764500749216,-319.96400785,0.00012207,2]
[395163696,1764500749229,-247.93978296,0.00012207,2]
[395163697,1764500749238,-428.1427409,0.00012207,2]
[395163698,1764500754776,-571.8572591,0.00012207,2]
[395163699,1764500754804,-1000.0,0.00012207,2]
[395163700,1764500754834,-1000.0,0.00012207,2]
[395163701,1764500754868,-1000.0,0.00012207,2]
[395163702,1764500754896,-1000.0,0.00012207,2]
[395163703,1764500754934,-1000.0,0.00012207,2]
[395163704,1764500754962,-1000.0,0.00012207,2]
[395163705,1764500754989,-1000.0,0.00012207,2]
[395163706,1764500755017,-1000.0,0.00012207,2]
[395163707,1764500755044,-1000.0,0.00012207,2]
[395163708,1764500755216,-1000.0,0.00012207,2]
[395163709,1764500755245,-1000.0,0.00012207,2]
[395163710,1764500755273,-334.5472959,0.00012207,2]
[395163711,1764500755304,-689.66878,0.00012207,2]
[395163712,1764500755333,-1000.0,0.00012207,2]
[395163713,1764500755361,-151.0,0.00012207,2]
[395163714,1764500755391,-339.97703586,0.00012207,2]
[395163715,1764500755705,-389.54452184,0.00012207,2]
[395163716,1764500755722,-151.0,0.00012207,2]
[395163717,1764500755740,-339.97703586,0.00012207,2]
[395163718,1764500755772,-969.62377648,0.00012207,2]
[395163719,1764500755806,-10000.01,0.00012207,2]
[395163721,1764500769462,-300.0,0.00012206,2]
[395163722,1764500769492,-150.0,0.00012206,2]
[395163723,1764500769523,-151.0,0.00012207,2]
[395163724,1764500769551,-152.92706705,0.00012207,2]
[395163725,1764500770214,152.92706705,0.00012207,2]
[395163726,1764500782936,295.8306,0.00012007,2]
[395163727,1764500793073,500.0,0.00012206,2]
[395163728,1764500793392,624.7008058,0.00012206,2]
[395163729,1764500793864,500.0,0.00012206,2]
[395163731,1764500806602,-4900.0,0.00012207,2]
[395163734,1764500829588,1000.0,0.000122,2]
[395163736,1764500830187,1000.0,0.000122,2]
[395163737,1764500832137,173.6301566,0.000122,2]
[395163738,1764500837423,222.4738,0.000122,2]
[395163739,1764500837567,151.0,0.000122,2]
[395163740,1764500838193,151.0,0.000122,2]
[395163741,1764500838800,151.0,0.000122,2]
[395163742,1764500839431,151.0,0.000122,2]
[395163743,1764500844510,334.5472959,0.000122,2]
[395163744,1764500850030,257.91778498,0.000122,2]
[395163745,1764500854240,1000.0,0.000122,2]
[395163746,1764500862641,500.0,0.00012078,2]
[395163747,1764500873243,1200.0,0.00012206,2]
[395163752,1764500941712,126.12835557,0.00012206,2]
[395163753,1764500941734,173.87164443,0.00012206,2]
[395163754,1764500941910,150.0,0.00012206,2]
[395163756,1764500947088,2453.03,0.00012084,2]
[395163757,1764500998948,7223.10835557,0.00012107,2]
[395163758,1764500998969,2887.22922774,0.00012107,2]
[395163759,1764501001528,300.0,0.00012206,2]
[395163760,1764501001566,1200.0,0.00012206,2]
[395163761,1764501001717,300.0,0.00012206,2]
[395163763,1764501008102,200.0,0.00012207,2]
[395163765,1764501021263,5112.78077226,0.00012107,2]
[395163766,1764501021286,1382.69996914,0.00012107,2]
[395163785,1764501040529,-9155.84279121,0.00012207,2]
[395163786,1764501040703,-1.7e-07,0.00012207,2]
[395163792,1764501042906,-255.30156406,0.00012207,2]
[395163807,1764501045536,-351.5521247,0.00012207,2]